[Event "FIDE Grand Swiss 2023"]
[Site "Villa Marina, Douglas, Isle of Man"]
[Date "2023.10.25"]
[Round "1.17"]
[White "Durarbayli, Vasif"]
[Black "Vitiugov, Nikita"]
[Result "1/2-1/2"]
[WhiteElo "2625"]
[BlackElo "2711"]
[EventDate "2023.10.25"]
[ECO "C88"]
[PlyCount "80"]
[BlackFideId "4152956"]
[TimeControl "40/100 + 20/50 + 15 + 30s/move"]
[WhiteFideId "13402935"]

1.e4 {[%clk 01:40:55] [%emt 00:00:04]} 1...e5 {[%clk 01:40:39] [%emt 00:00:21]} 
2.Nf3 {[%clk 01:40:52] [%emt 00:00:33]} 2...Nc6 {[%clk 01:41:03] [%emt
00:00:07]} 3.Bb5 {[%clk 01:40:52] [%emt 00:00:30]} 3...a6 {[%clk 01:41:25] [%emt
00:00:07]} 4.Ba4 {[%clk 01:41:00] [%emt 00:00:22]} 4...Nf6 {[%clk 01:41:46]
[%emt 00:00:10]} 5.O-O {[%clk 01:41:04] [%emt 00:00:26]} 5...Be7 {[%clk
01:41:57] [%emt 00:00:18]} 6.Re1 {[%clk 01:41:13] [%emt 00:00:22]} 6...b5 
{[%clk 01:42:01] [%emt 00:00:26]} 7.Bb3 {[%clk 01:41:33] [%emt 00:00:10]} 
7...O-O {[%clk 01:42:25] [%emt 00:00:06]} 8.a4 {[%clk 01:41:41] [%emt 00:00:22]} 
8...b4 {[%clk 01:41:49] [%emt 00:01:06]} 9.d4 {[%clk 01:41:45] [%emt 00:00:26]} 
9...d6 {[%clk 01:42:00] [%emt 00:00:19]} 10.dxe5 {[%clk 01:41:55] [%emt
00:00:20]} 10...Nxe5 {[%clk 01:42:00] [%emt 00:00:30]} 11.Nxe5 {[%clk 01:42:15]
[%emt 00:00:09]} 11...dxe5 {[%clk 01:42:25] [%emt 00:00:06]} 12.Qxd8 {[%clk
01:42:31]} 12...Rxd8 {[%clk 01:42:43] [%emt 00:00:26]} 13.Nd2 {[%clk 01:42:42]
[%emt 00:00:18]} 13...Bc5 {[%clk 01:33:14] [%emt 00:09:59]} 14.Nf3 {[%clk
01:42:17] [%emt 00:00:55]} 14...Ng4 {[%clk 01:32:10] [%emt 00:01:35]} 15.Be3 
{[%clk 01:42:30] [%emt 00:00:16]} 15...Bxe3 {[%clk 01:31:00] [%emt 00:01:41]} 
16.fxe3 {[%clk 01:42:51] [%emt 00:00:09]} 16...Rd6 {[%clk 01:27:24] [%emt
00:04:07]} 17.Rad1 {[%clk 01:43:03] [%emt 00:00:16]} 17...Be6 {[%clk 01:22:58]
[%emt 00:04:57]} 18.Rxd6 {[%clk 01:41:08] [%emt 00:02:26]} 18...cxd6 {[%clk
01:23:23] [%emt 00:00:04]} 19.Rd1 {[%clk 01:41:27] [%emt 00:00:10]} 19...Rd8 
{[%clk 01:07:09] [%emt 00:16:45]} 20.h3 {[%clk 01:40:46] [%emt 00:01:10]} 
20...Nxe3 {[%clk 01:05:31] [%emt 00:02:09]} 21.Rd2 {[%clk 01:41:07] [%emt
00:00:09]} 21...Bxb3 {[%clk 01:05:48] [%emt 00:00:14]} 22.cxb3 {[%clk 01:41:27]
[%emt 00:00:09]} 22...f5 {[%clk 01:06:12] [%emt 00:00:05]} 23.exf5 {[%clk
01:41:50] [%emt 00:00:08]} 23...e4 {[%clk 01:00:25] [%emt 00:06:18]} 24.Nd4 
{[%clk 01:42:07] [%emt 00:00:12]} 24...Re8 {[%clk 00:57:18] [%emt 00:03:37]} 
25.g4 {[%clk 01:40:32] [%emt 00:02:05]} 25...h5 {[%clk 00:41:33] [%emt
00:16:16]} 26.Ne6 {[%clk 01:37:02] [%emt 00:03:59]} 26...hxg4 {[%clk 00:39:10]
[%emt 00:02:53]} 27.hxg4 {[%clk 01:37:26] [%emt 00:00:06]} 27...d5 {[%clk
00:27:57] [%emt 00:11:43]} 28.Nc7 {[%clk 01:25:24] [%emt 00:12:32]} 28...Re5 
{[%clk 00:24:23] [%emt 00:04:03]} 29.a5 {[%clk 01:14:10] [%emt 00:11:44]} 
29...Nxg4 {[%clk 00:15:25] [%emt 00:09:28]} 30.Rxd5 {[%clk 01:14:12] [%emt
00:00:29]} 30...Kf7 {[%clk 00:14:47] [%emt 00:01:08]} 31.Rxe5 {[%clk 01:06:35]
[%emt 00:08:07]} 31...Nxe5 {[%clk 00:14:58] [%emt 00:00:18]} 32.Kf2 {[%clk
01:07:00] [%emt 00:00:05]} 32...Nd3+ {[%clk 00:12:54] [%emt 00:02:35]} 33.Ke3 
{[%clk 01:07:22] [%emt 00:00:07]} 33...Nc5 {[%clk 00:13:18] [%emt 00:00:06]} 
34.Kf4 {[%clk 01:07:10] [%emt 00:00:42]} 34...Nxb3 {[%clk 00:13:18] [%emt
00:00:31]} 35.Nxa6 {[%clk 01:07:33] [%emt 00:00:07]} 35...Nxa5 {[%clk 00:13:45]
[%emt 00:00:03]} 36.Nxb4 {[%clk 01:07:58] [%emt 00:00:05]} 36...Nc4 {[%clk
00:14:11] [%emt 00:00:04]} 37.Kxe4 {[%clk 01:08:22] [%emt 00:00:06]} 37...Nxb2 
{[%clk 00:14:37] [%emt 00:00:04]} 38.Nd5 {[%clk 01:08:46] [%emt 00:00:06]} 
38...Nc4 {[%clk 00:15:03] [%emt 00:00:04]} 39.Kf4 {[%clk 01:09:07] [%emt
00:00:08]} 39...g6 {[%clk 00:15:28] [%emt 00:00:05]} 40.fxg6+ {[%clk 01:09:35]
[%emt 00:00:03]} 40...Kxg6 {[%clk 00:15:56] [%emt 00:00:03]} 1/2-1/2

[Event "FIDE Grand Swiss 2023"]
[Site "Villa Marina, Douglas, Isle of Man"]
[Date "2023.10.25"]
[Round "1.18"]
[White "Maghsoodloo, Parham"]
[Black "Kuzubov, Yuriy"]
[Result "1-0"]
[WhiteElo "2707"]
[BlackElo "2625"]
[EventDate "2023.10.25"]
[ECO "D35"]
[PlyCount "73"]
[BlackFideId "14112906"]
[TimeControl "40/100 + 20/50 + 15 + 30s/move"]
[WhiteFideId "12539929"]

1.c4 {[%clk 01:40:58] [%emt 00:00:01]} 1...e6 {[%clk 01:40:43] [%emt 00:00:17]} 
2.Nc3 {[%clk 01:41:20] [%emt 00:00:08]} 2...d5 {[%clk 01:40:59] [%emt 00:00:14]} 
3.d4 {[%clk 01:41:43] [%emt 00:00:07]} 3...Nf6 {[%clk 01:41:13] [%emt 00:00:15]} 
4.cxd5 {[%clk 01:42:08] [%emt 00:00:06]} 4...exd5 {[%clk 01:41:35] [%emt
00:00:08]} 5.Bg5 {[%clk 01:42:35] [%emt 00:00:04]} 5...c6 {[%clk 01:41:54] [%emt
00:00:10]} 6.e3 {[%clk 01:43:00] [%emt 00:00:06]} 6...Be7 {[%clk 01:42:08] [%emt
00:00:15]} 7.Bd3 {[%clk 01:43:22] [%emt 00:00:07]} 7...Nbd7 {[%clk 01:42:06]
[%emt 00:00:32]} 8.h3 {[%clk 01:32:50] [%emt 00:11:03]} 8...O-O {[%clk 01:40:48]
[%emt 00:01:48]} 9.Bf4 {[%clk 01:32:42] [%emt 00:00:39]} 9...c5 {[%clk 01:33:37]
[%emt 00:07:40]} 10.dxc5 {[%clk 01:23:23] [%emt 00:09:49]} 10...Nxc5 {[%clk
01:33:59] [%emt 00:00:08]} 11.Bc2 {[%clk 01:21:23] [%emt 00:02:31]} 11...Qb6 
{[%clk 01:27:29] [%emt 00:06:59]} 12.Rb1 {[%clk 01:17:43] [%emt 00:04:11]} 
12...Rd8 {[%clk 01:23:16] [%emt 00:04:42]} 13.Nge2 {[%clk 01:15:21] [%emt
00:02:53]} 13...Nce4 {[%clk 01:16:20] [%emt 00:07:26]} 14.Be5 {[%clk 01:11:27]
[%emt 00:04:25]} 14...Qe6 {[%clk 01:08:58] [%emt 00:07:51]} 15.Bc7 {[%clk
01:01:07] [%emt 00:10:50]} 15...Nxc3 {[%clk 01:07:30] [%emt 00:01:57]} 16.bxc3 
{[%clk 01:01:33] [%emt 00:00:06]} 16...Rf8 {[%clk 01:04:20] [%emt 00:03:39]} 
17.O-O {[%clk 00:59:05] [%emt 00:02:58]} 17...b6 {[%clk 00:49:20] [%emt
00:15:30]} 18.Nf4 {[%clk 00:53:02] [%emt 00:06:33]} 18...Qc6 {[%clk 00:49:00]
[%emt 00:00:50]} 19.Be5 {[%clk 00:53:26] [%emt 00:00:06]} 19...Ba6 {[%clk
00:41:40] [%emt 00:07:49]} 20.Ba4 {[%clk 00:53:36] [%emt 00:00:20]} 20...Qc8 
{[%clk 00:40:27] [%emt 00:01:43]} 21.Bb5 {[%clk 00:54:00] [%emt 00:00:07]} 
21...Bb7 {[%clk 00:39:00] [%emt 00:01:57]} 22.Qc2 {[%clk 00:48:26] [%emt
00:06:04]} 22...Nd7 {[%clk 00:32:42] [%emt 00:06:48]} 23.Bd4 {[%clk 00:48:49]
[%emt 00:00:07]} 23...Nc5 {[%clk 00:32:14] [%emt 00:00:59]} 24.a4 {[%clk
00:35:57] [%emt 00:13:22]} 24...Bd6 {[%clk 00:29:11] [%emt 00:03:32]} 25.Nh5 
{[%clk 00:30:14] [%emt 00:06:13]} 25...f6 {[%clk 00:29:29] [%emt 00:00:11]} 
26.g4 {[%clk 00:26:26] [%emt 00:04:20]} 26...Qc7 {[%clk 00:19:18] [%emt
00:10:40]} 27.a5 {[%clk 00:20:21] [%emt 00:06:36]} 27...Bc6 {[%clk 00:06:54]
[%emt 00:12:53]} 28.axb6 {[%clk 00:18:57] [%emt 00:01:54]} 28...axb6 {[%clk
00:07:19] [%emt 00:00:04]} 29.Qf5 {[%clk 00:13:45] [%emt 00:05:43]} 29...Bb7 
{[%clk 00:03:40] [%emt 00:04:09]} 30.f4 {[%clk 00:06:34] [%emt 00:07:42]} 
30...Ra2 {[%clk 00:02:54] [%emt 00:01:15]} 31.Ra1 {[%clk 00:04:22] [%emt
00:02:42]} 31...Rxa1 {[%clk 00:01:03] [%emt 00:02:21]} 32.Rxa1 {[%clk 00:04:51]
[%emt 00:00:02]} 32...Nb3 {[%clk 00:01:09] [%emt 00:00:23]} 33.Bd3 {[%clk
00:04:44] [%emt 00:00:37]} 33...Nxa1 {[%clk 00:00:33] [%emt 00:01:07]} 34.Qxh7+ 
{[%clk 00:05:09] [%emt 00:00:05]} 34...Kf7 {[%clk 00:01:00] [%emt 00:00:03]} 
35.Nxg7 {[%clk 00:04:30] [%emt 00:01:08]} 35...Ke7 {[%clk 00:00:44] [%emt
00:00:46]} 36.Bg6 {[%clk 00:03:28] [%emt 00:01:33]} 36...Bxf4 {[%clk 00:00:35]
[%emt 00:00:39]} 37.Ne8+ {[%clk 00:03:10] [%emt 00:00:47]} 1-0

[Event "FIDE Grand Swiss 2023"]
[Site "Villa Marina, Douglas, Isle of Man"]
[Date "2023.10.25"]
[Round "1.19"]
[White "Mendonca, Leon Luke"]
[Black "Van Foreest, Jorden"]
[Result "1/2-1/2"]
[WhiteElo "2622"]
[BlackElo "2707"]
[EventDate "2023.10.25"]
[ECO "C65"]
[PlyCount "108"]
[BlackFideId "1039784"]
[TimeControl "40/100 + 20/50 + 15 + 30s/move"]
[WhiteFideId "35028561"]

1.e4 {[%clk 01:40:48] [%emt 00:00:11]} 1...e5 {[%clk 01:40:50] [%emt 00:00:10]} 
2.Nf3 {[%clk 01:41:02] [%emt 00:00:17]} 2...Nc6 {[%clk 01:41:13] [%emt
00:00:07]} 3.Bb5 {[%clk 01:41:07] [%emt 00:00:25]} 3...Nf6 {[%clk 01:40:18]
[%emt 00:01:24]} 4.d3 {[%clk 01:40:39] [%emt 00:00:59]} 4...d6 {[%clk 01:40:18]
[%emt 00:00:30]} 5.O-O {[%clk 01:38:58] [%emt 00:02:11]} 5...a6 {[%clk 01:39:39]
[%emt 00:01:10]} 6.Bxc6+ {[%clk 01:35:06] [%emt 00:04:21]} 6...bxc6 {[%clk
01:40:00] [%emt 00:00:09]} 7.d4 {[%clk 01:26:00] [%emt 00:09:36]} 7...exd4 
{[%clk 01:40:02] [%emt 00:00:27]} 8.Nxd4 {[%clk 01:26:25] [%emt 00:00:05]} 
8...c5 {[%clk 01:39:39] [%emt 00:00:53]} 9.Nc6 {[%clk 01:15:32] [%emt 00:11:24]} 
9...Qd7 {[%clk 01:39:07] [%emt 00:01:02]} 10.Na5 {[%clk 01:15:56] [%emt
00:00:05]} 10...Qa4 {[%clk 01:38:42] [%emt 00:00:54]} 11.Bd2 {[%clk 01:11:34]
[%emt 00:04:53]} 11...Be7 {[%clk 01:38:02] [%emt 00:01:10]} 12.Re1 {[%clk
01:08:09] [%emt 00:03:55]} 12...Bg4 {[%clk 01:37:01] [%emt 00:01:31]} 13.f3 
{[%clk 00:49:55] [%emt 00:18:44]} 13...Be6 {[%clk 01:36:37] [%emt 00:00:53]} 
14.Kh1 {[%clk 00:48:38] [%emt 00:01:48]} 14...Qd7 {[%clk 01:32:15] [%emt
00:04:52]} 15.c4 {[%clk 00:47:20] [%emt 00:01:48]} 15...c6 {[%clk 01:29:35]
[%emt 00:03:11]} 16.Nc3 {[%clk 00:45:43] [%emt 00:02:07]} 16...O-O {[%clk
01:28:21] [%emt 00:01:44]} 17.Qa4 {[%clk 00:41:28] [%emt 00:04:45]} 17...Rac8 
{[%clk 01:16:06] [%emt 00:12:45]} 18.Rad1 {[%clk 00:39:30] [%emt 00:02:28]} 
18...Qc7 {[%clk 01:11:37] [%emt 00:04:59]} 19.Ne2 {[%clk 00:37:30] [%emt
00:02:30]} 19...Nh5 {[%clk 00:59:58] [%emt 00:12:08]} 20.a3 {[%clk 00:30:22]
[%emt 00:07:39]} 20...Bh4 {[%clk 00:58:30] [%emt 00:01:57]} 21.Rf1 {[%clk
00:25:20] [%emt 00:05:33]} 21...f5 {[%clk 00:50:52] [%emt 00:08:08]} 22.Nf4 
{[%clk 00:19:41] [%emt 00:06:09]} 22...Qf7 {[%clk 00:48:15] [%emt 00:03:07]} 
23.exf5 {[%clk 00:07:39] [%emt 00:12:32]} 23...Bxf5 {[%clk 00:46:50] [%emt
00:01:54]} 24.Nxh5 {[%clk 00:08:06] [%emt 00:00:04]} 24...Qxh5 {[%clk 00:47:13]
[%emt 00:00:06]} 25.Bf4 {[%clk 00:02:53] [%emt 00:05:44]} 25...Be4 {[%clk
00:40:08] [%emt 00:07:34]} 26.fxe4 {[%clk 00:00:54] [%emt 00:02:30]} 26...Rxf4 
{[%clk 00:40:27] [%emt 00:00:10]} 27.Rxf4 {[%clk 00:01:14] [%emt 00:00:11]} 
27...Bg3 {[%clk 00:40:52] [%emt 00:00:05]} 28.h3 {[%clk 00:01:38] [%emt
00:00:06]} 28...Bxf4 {[%clk 00:41:18] [%emt 00:00:04]} 29.Rf1 {[%clk 00:01:35]
[%emt 00:00:33]} 29...Be5 {[%clk 00:40:28] [%emt 00:01:20]} 30.Qd1 {[%clk
00:00:51] [%emt 00:01:15]} 30...Qe8 {[%clk 00:27:56] [%emt 00:13:00]} 31.b4 
{[%clk 00:01:01] [%emt 00:00:21]} 31...h6 {[%clk 00:26:17] [%emt 00:02:10]} 
32.Qd2 {[%clk 00:00:35] [%emt 00:00:56]} 32...Rb8 {[%clk 00:25:46] [%emt
00:01:00]} 33.Rd1 {[%clk 00:00:33] [%emt 00:00:32]} 33...Kh7 {[%clk 00:22:47]
[%emt 00:03:28]} 34.Rf1 {[%clk 00:00:32] [%emt 00:00:32]} 34...cxb4 {[%clk
00:20:22] [%emt 00:02:56]} 35.axb4 {[%clk 00:01:00] [%emt 00:00:02]} 35...c5 
{[%clk 00:20:43] [%emt 00:00:08]} 36.bxc5 {[%clk 00:00:40] [%emt 00:00:50]} 
36...Rb2 {[%clk 00:20:55] [%emt 00:00:17]} 37.Qd3 {[%clk 00:00:33] [%emt
00:00:38]} 37...dxc5 {[%clk 00:12:33] [%emt 00:08:52]} 38.Nb3 {[%clk 00:00:56]
[%emt 00:00:07]} 38...Qe7 {[%clk 00:12:55] [%emt 00:00:08]} 39.Qe3 {[%clk
00:00:33] [%emt 00:00:53]} 39...Qe6 {[%clk 00:02:58] [%emt 00:10:26]} 40.Nxc5 
{[%clk 00:00:33] [%emt 00:00:31]} 40...Qxc4 {[%clk 00:01:35] [%emt 00:01:53]} 
41.Nd3 {[%clk 00:43:06] [%emt 00:07:57]} 41...Rb3 {[%clk 00:49:55] [%emt
00:02:10]} 42.Rd1 {[%clk 00:42:42] [%emt 00:00:54]} 42...Qc2 {[%clk 00:40:15]
[%emt 00:10:09]} 43.Qf3 {[%clk 00:41:34] [%emt 00:01:39]} 43...Rb1 {[%clk
00:29:50] [%emt 00:10:55]} 44.Rf1 {[%clk 00:38:05] [%emt 00:03:59]} 44...Bd4 
{[%clk 00:24:56] [%emt 00:05:24]} 45.Qf5+ {[%clk 00:33:09] [%emt 00:05:26]} 
45...g6 {[%clk 00:24:12] [%emt 00:01:14]} 46.Qd7+ {[%clk 00:32:24] [%emt
00:01:15]} 46...Bg7 {[%clk 00:24:37] [%emt 00:00:04]} 47.Rxb1 {[%clk 00:31:55]
[%emt 00:01:00]} 47...Qxb1+ {[%clk 00:25:02] [%emt 00:00:05]} 48.Kh2 {[%clk
00:32:18] [%emt 00:00:07]} 48...a5 {[%clk 00:24:07] [%emt 00:01:24]} 49.e5 
{[%clk 00:32:04] [%emt 00:00:45]} 49...a4 {[%clk 00:24:33] [%emt 00:00:04]} 
50.Qd6 {[%clk 00:18:28] [%emt 00:14:06]} 50...Qa1 {[%clk 00:19:57] [%emt
00:05:06]} 51.e6 {[%clk 00:17:08] [%emt 00:01:50]} 51...Qf6 {[%clk 00:20:22]
[%emt 00:00:04]} 52.Qd7 {[%clk 00:15:52] [%emt 00:01:46]} 52...a3 {[%clk
00:20:47] [%emt 00:00:06]} 53.e7 {[%clk 00:16:17] [%emt 00:00:05]} 53...Qxe7 
{[%clk 00:18:35] [%emt 00:02:42]} 54.Qxe7 {[%clk 00:16:37] [%emt 00:00:10]} 
54...a2 {[%clk 00:18:59] [%emt 00:00:05]} 1/2-1/2

[Event "FIDE Grand Swiss 2023"]
[Site "Villa Marina, Douglas, Isle of Man"]
[Date "2023.10.25"]
[Round "1.20"]
[White "Deac, Bogdan-Daniel"]
[Black "Tari, Aryan"]
[Result "1/2-1/2"]
[WhiteElo "2701"]
[BlackElo "2619"]
[EventDate "2023.10.25"]
[ECO "A34"]
[PlyCount "85"]
[BlackFideId "1510045"]
[TimeControl "40/100 + 20/50 + 15 + 30s/move"]
[WhiteFideId "1226380"]

1.c4 {[%clk 01:40:14] [%emt 00:00:46]} 1...c5 {[%clk 01:40:40] [%emt 00:00:21]} 
2.Nf3 {[%clk 01:40:36] [%emt 00:00:07]} 2...Nf6 {[%clk 01:41:04] [%emt
00:00:07]} 3.Nc3 {[%clk 01:40:52] [%emt 00:00:14]} 3...e6 {[%clk 01:41:23] [%emt
00:00:11]} 4.a3 {[%clk 01:34:14] [%emt 00:07:07]} 4...Nc6 {[%clk 01:29:59] [%emt
00:11:55]} 5.d4 {[%clk 01:31:42] [%emt 00:03:01]} 5...cxd4 {[%clk 01:27:39]
[%emt 00:02:51]} 6.Nxd4 {[%clk 01:32:11] [%emt 00:00:01]} 6...d5 {[%clk
01:27:29] [%emt 00:00:40]} 7.cxd5 {[%clk 01:32:05] [%emt 00:00:35]} 7...Nxd5 
{[%clk 01:26:27] [%emt 00:01:32]} 8.Nxc6 {[%clk 01:31:47] [%emt 00:00:49]} 
8...bxc6 {[%clk 01:26:50] [%emt 00:00:07]} 9.Qc2 {[%clk 01:15:41] [%emt
00:16:36]} 9...Be7 {[%clk 01:21:03] [%emt 00:06:16]} 10.e4 {[%clk 01:06:46]
[%emt 00:09:26]} 10...Nxc3 {[%clk 01:20:39] [%emt 00:00:54]} 11.Qxc3 {[%clk
01:06:29] [%emt 00:00:46]} 11...O-O {[%clk 01:18:25] [%emt 00:02:44]} 12.Be3 
{[%clk 01:06:14] [%emt 00:00:46]} 12...Qc7 {[%clk 01:08:15] [%emt 00:10:40]} 
13.Bd4 {[%clk 01:01:12] [%emt 00:05:31]} 13...Qf4 {[%clk 01:05:45] [%emt
00:03:00]} 14.Bd3 {[%clk 00:46:47] [%emt 00:14:56]} 14...Rd8 {[%clk 01:01:51]
[%emt 00:04:24]} 15.Rd1 {[%clk 00:46:30] [%emt 00:00:46]} 15...c5 {[%clk
00:43:24] [%emt 00:18:58]} 16.Be5 {[%clk 00:34:02] [%emt 00:12:58]} 16...Qg5 
{[%clk 00:41:57] [%emt 00:01:57]} 17.O-O {[%clk 00:34:10] [%emt 00:00:23]} 
17...Bf6 {[%clk 00:32:14] [%emt 00:10:12]} 18.Bxf6 {[%clk 00:22:33] [%emt
00:12:07]} 18...Qxf6 {[%clk 00:32:43] [%emt 00:00:02]} 19.Qxc5 {[%clk 00:20:03]
[%emt 00:03:00]} 19...Qxb2 {[%clk 00:30:05] [%emt 00:03:07]} 20.Bb5 {[%clk
00:16:47] [%emt 00:03:46]} 20...Rf8 {[%clk 00:21:15] [%emt 00:09:20]} 21.Rb1 
{[%clk 00:06:30] [%emt 00:10:47]} 21...Qf6 {[%clk 00:19:33] [%emt 00:02:12]} 
22.e5 {[%clk 00:03:58] [%emt 00:03:02]} 22...Qd8 {[%clk 00:13:07] [%emt
00:06:57]} 23.Be2 {[%clk 00:03:08] [%emt 00:01:20]} 23...Bd7 {[%clk 00:08:20]
[%emt 00:05:17]} 24.Rfd1 {[%clk 00:02:10] [%emt 00:01:27]} 24...Qe8 {[%clk
00:08:08] [%emt 00:00:42]} 25.Rd6 {[%clk 00:02:17] [%emt 00:00:23]} 25...Rc8 
{[%clk 00:07:02] [%emt 00:01:37]} 26.Qxa7 {[%clk 00:01:54] [%emt 00:00:53]} 
26...Bc6 {[%clk 00:07:31] [%emt 00:00:01]} 27.h4 {[%clk 00:00:44] [%emt
00:01:40]} 27...Ra8 {[%clk 00:06:50] [%emt 00:01:10]} 28.Qe3 {[%clk 00:00:50]
[%emt 00:00:24]} 28...Bd5 {[%clk 00:06:50] [%emt 00:00:31]} 29.Rb4 {[%clk
00:00:34] [%emt 00:00:45]} 29...Kh8 {[%clk 00:05:49] [%emt 00:01:32]} 30.h5 
{[%clk 00:00:45] [%emt 00:00:19]} 30...h6 {[%clk 00:06:09] [%emt 00:00:10]} 
31.Rg4 {[%clk 00:00:32] [%emt 00:00:43]} 31...Ra4 {[%clk 00:04:48] [%emt
00:01:51]} 32.Rb4 {[%clk 00:00:32] [%emt 00:00:30]} 32...Qa8 {[%clk 00:04:39]
[%emt 00:00:38]} 33.Rxa4 {[%clk 00:00:41] [%emt 00:00:22]} 33...Qxa4 {[%clk
00:05:08] [%emt 00:00:01]} 34.Ra6 {[%clk 00:00:43] [%emt 00:00:27]} 34...Qc2 
{[%clk 00:05:26] [%emt 00:00:12]} 35.Rb6 {[%clk 00:00:36] [%emt 00:00:38]} 
35...Rc8 {[%clk 00:03:40] [%emt 00:02:16]} 36.f3 {[%clk 00:00:32] [%emt
00:00:34]} 36...Rc3 {[%clk 00:02:44] [%emt 00:01:26]} 37.Qd4 {[%emt 00:00:25]} 
37...Rxa3 {[%clk 00:02:28] [%emt 00:00:44]} 38.Rb8+ {[%clk 00:00:45] [%emt
00:00:24]} 38...Kh7 {[%clk 00:02:57]} 39.Rb2 {[%clk 00:00:32] [%emt 00:00:42]} 
39...Qc1+ {[%clk 00:02:41] [%emt 00:00:47]} 40.Kh2 {[%clk 00:00:32] [%emt
00:00:30]} 40...Ra8 {[%clk 00:02:24] [%emt 00:00:47]} 41.Qd2 {[%clk 00:00:35]
[%emt 00:00:26]} 41...Qxd2 {[%clk 00:01:58] [%emt 00:00:57]} 42.Rxd2 {[%clk
00:00:58] [%emt 00:00:07]} 42...g5 {[%clk 00:50:22] [%emt 00:02:06]} 43.hxg6+ 
{[%clk 00:51:18] [%emt 00:00:09]} 1/2-1/2